[Event "Early-Titled-Tuesday-Blitz-March-12-2024"]
[Site "Chess.com"]
[Date "2024.03.12"]
[Round "1"]
[White "PolandHussars"]
[Black "ChessLover0108"]
[Result "1/2-1/2"]
[WhiteElo "2538"]
[BlackElo "2944"]
[TimeControl "180+1"]
[EndTime "8:08:29 PDT"]
[Termination "Game drawn - insufficient material"]

1. e4 {[%clk 0:03:00]} 1... c5 {[%clk 0:02:51.6]} 2. Ne2 {[%clk 0:02:57.6]} 2...
d6 {[%clk 0:02:49.6]} 3. g3 {[%clk 0:02:57.6]} 3... g6 {[%clk 0:02:49.5]} 4. Bg2
{[%clk 0:02:57.6]} 4... Bg7 {[%clk 0:02:50.1]} 5. c3 {[%clk 0:02:57.5]} 5... b6
{[%clk 0:02:36.6]} 6. d4 {[%clk 0:02:55.7]} 6... Bb7 {[%clk 0:02:37.1]} 7. h3
{[%clk 0:02:46.6]} 7... Nf6 {[%clk 0:02:33.1]} 8. f3 {[%clk 0:02:42.4]} 8... O-O
{[%clk 0:02:31.6]} 9. Be3 {[%clk 0:02:41.4]} 9... Nc6 {[%clk 0:02:28.9]} 10. O-O
{[%clk 0:02:38.4]} 10... Rc8 {[%clk 0:02:19.3]} 11. d5 {[%clk 0:02:33]} 11...
Na5 {[%clk 0:02:19.1]} 12. Nd2 {[%clk 0:02:28.3]} 12... e6 {[%clk 0:02:19.3]}
13. dxe6 {[%clk 0:02:26.9]} 13... fxe6 {[%clk 0:02:20.2]} 14. Nf4 {[%clk
0:02:10.5]} 14... Qe7 {[%clk 0:02:11]} 15. Rc1 {[%clk 0:02:08.9]} 15... d5
{[%clk 0:01:55.1]} 16. exd5 {[%clk 0:02:06.4]} 16... Nxd5 {[%clk 0:01:55.2]} 17.
Nxd5 {[%clk 0:02:05.9]} 17... exd5 {[%clk 0:01:56.1]} 18. Re1 {[%clk 0:01:58.4]}
18... Rcd8 {[%clk 0:01:54.1]} 19. Bf2 {[%clk 0:01:51.7]} 19... Qf7 {[%clk
0:01:53.5]} 20. f4 {[%clk 0:01:47.8]} 20... d4 {[%clk 0:01:48]} 21. cxd4 {[%clk
0:01:37.9]} 21... Bxg2 {[%clk 0:01:45.2]} 22. Kxg2 {[%clk 0:01:37.8]} 22... Qxa2
{[%clk 0:01:46.1]} 23. dxc5 {[%clk 0:01:27.5]} 23... Qxb2 {[%clk 0:01:09.6]} 24.
Rc2 {[%clk 0:01:26.7]} 24... Qb5 {[%clk 0:01:00]} 25. cxb6 {[%clk 0:01:24.2]}
25... axb6 {[%clk 0:01:00.9]} 26. Qb1 {[%clk 0:01:21.3]} 26... Qd5+ {[%clk
0:00:59]} 27. Nf3 {[%clk 0:01:18]} 27... Nc4 {[%clk 0:00:53.8]} 28. Qb3 {[%clk
0:01:10.1]} 28... b5 {[%clk 0:00:53.8]} 29. Rce2 {[%clk 0:01:00.7]} 29... h6
{[%clk 0:00:43.3]} 30. Kh2 {[%clk 0:00:58.7]} 30... g5 {[%clk 0:00:43.6]} 31.
Re4 {[%clk 0:00:44.7]} 31... gxf4 {[%clk 0:00:36.2]} 32. gxf4 {[%clk 0:00:44.4]}
32... Kh8 {[%clk 0:00:35.8]} 33. Nh4 {[%clk 0:00:34.1]} 33... Rd6 {[%clk
0:00:23.9]} 34. f5 {[%clk 0:00:32.7]} 34... Kh7 {[%clk 0:00:22.1]} 35. Re6
{[%clk 0:00:26.9]} 35... Rxe6 {[%clk 0:00:18.5]} 36. Rxe6 {[%clk 0:00:27.8]}
36... Be5+ {[%clk 0:00:15.9]} 37. Kg1 {[%clk 0:00:24.8]} 37... Rxf5 {[%clk
0:00:12.3]} 38. Rxh6+ {[%clk 0:00:23.4]} 38... Kxh6 {[%clk 0:00:12.3]} 39. Nxf5+
{[%clk 0:00:23.8]} 39... Kg5 {[%clk 0:00:10.7]} 40. Ne3 {[%clk 0:00:21.9]} 40...
Qc6 {[%clk 0:00:05.7]} 41. Nxc4 {[%clk 0:00:21.2]} 41... bxc4 {[%clk 0:00:06.6]}
42. Qe3+ {[%clk 0:00:20.9]} 42... Kf5 {[%clk 0:00:07.3]} 43. h4 {[%clk
0:00:18.8]} 43... c3 {[%clk 0:00:07.2]} 44. Qg5+ {[%clk 0:00:19]} 44... Ke6
{[%clk 0:00:05.1]} 45. Qg6+ {[%clk 0:00:19.2]} 45... Bf6 {[%clk 0:00:05.7]} 46.
Bd4 {[%clk 0:00:18.9]} 46... Qf3 {[%clk 0:00:04.3]} 47. Bxf6 {[%clk 0:00:16.2]}
47... Qxf6 {[%clk 0:00:05.2]} 48. Qe4+ {[%clk 0:00:16.2]} 48... Qe5 {[%clk
0:00:05.1]} 49. Qc6+ {[%clk 0:00:16.2]} 49... Kf5 {[%clk 0:00:05.6]} 50. Qf3+
{[%clk 0:00:16.1]} 50... Ke6 {[%clk 0:00:04.8]} 51. Qc6+ {[%clk 0:00:15.8]}
51... Ke7 {[%clk 0:00:05.5]} 52. Qb7+ {[%clk 0:00:15.4]} 52... Kd6 {[%clk
0:00:05.4]} 53. Qb8+ {[%clk 0:00:15]} 53... Kd5 {[%clk 0:00:05.8]} 54. Qb5+
{[%clk 0:00:14.8]} 54... Kd4 {[%clk 0:00:06.5]} 55. Qb4+ {[%clk 0:00:14.8]}
55... Kd3 {[%clk 0:00:06.7]} 56. Kf2 {[%clk 0:00:13.3]} 56... Qe3+ {[%clk
0:00:03.4]} 57. Kf1 {[%clk 0:00:12.3]} 57... Qf3+ {[%clk 0:00:04]} 58. Kg1
{[%clk 0:00:11.9]} 58... Qe3+ {[%clk 0:00:03.5]} 59. Kf1 {[%clk 0:00:11.7]}
59... Qf3+ {[%clk 0:00:02.8]} 60. Kg1 {[%clk 0:00:12]} 60... c2 {[%clk
0:00:03.7]} 61. Qb3+ {[%clk 0:00:11.6]} 61... Ke4 {[%clk 0:00:02.6]} 62. Qxc2+
{[%clk 0:00:11.8]} 62... Kf4 {[%clk 0:00:03.5]} 63. Qf2 {[%clk 0:00:12]} 63...
Qxf2+ {[%clk 0:00:03.6]} 64. Kxf2 {[%clk 0:00:12.6]} 64... Kg4 {[%clk
0:00:04.5]} 65. h5 {[%clk 0:00:12.6]} 65... Kxh5 {[%clk 0:00:05.2]} 1/2-1/2

[Event "Early-Titled-Tuesday-Blitz-March-12-2024"]
[Site "Chess.com"]
[Date "2024.03.12"]
[Round "1"]
[White "stollenmonster"]
[Black "Barmen_EV"]
[Result "0-1"]
[WhiteElo "2869"]
[BlackElo "2508"]
[TimeControl "180+1"]
[EndTime "8:08:30 PDT"]
[Termination "Barmen_EV won by resignation"]

1. e4 {[%clk 0:03:00.9]} 1... c5 {[%clk 0:02:59.2]} 2. Nf3 {[%clk 0:03:00.7]}
2... Nc6 {[%clk 0:02:59.8]} 3. Nc3 {[%clk 0:03:00.7]} 3... e5 {[%clk 0:02:59.6]}
4. Nd5 {[%clk 0:02:59.5]} 4... Nf6 {[%clk 0:02:57.6]} 5. Nxf6+ {[%clk
0:02:56.6]} 5... Qxf6 {[%clk 0:02:58.5]} 6. g3 {[%clk 0:02:56.4]} 6... d6 {[%clk
0:02:56.7]} 7. Bg2 {[%clk 0:02:56.9]} 7... Be7 {[%clk 0:02:56]} 8. d3 {[%clk
0:02:56.5]} 8... O-O {[%clk 0:02:54.7]} 9. O-O {[%clk 0:02:56.9]} 9... Bg4
{[%clk 0:02:52.7]} 10. h3 {[%clk 0:02:57]} 10... Bh5 {[%clk 0:02:53.4]} 11. g4
{[%clk 0:02:56.7]} 11... Bg6 {[%clk 0:02:50.1]} 12. Nd2 {[%clk 0:02:53]} 12...
Rad8 {[%clk 0:02:43.7]} 13. Nc4 {[%clk 0:02:52.6]} 13... Qe6 {[%clk 0:02:43.1]}
14. Ne3 {[%clk 0:02:50.6]} 14... Bg5 {[%clk 0:02:36.6]} 15. c3 {[%clk
0:02:49.4]} 15... Ne7 {[%clk 0:02:30.5]} 16. Nf5 {[%clk 0:02:44.8]} 16... Bxc1
{[%clk 0:02:14.2]} 17. Qxc1 {[%clk 0:02:45.7]} 17... Bxf5 {[%clk 0:02:13.9]} 18.
exf5 {[%clk 0:02:46.3]} 18... Qf6 {[%clk 0:02:11.2]} 19. f4 {[%clk 0:02:44.6]}
19... d5 {[%clk 0:02:03.5]} 20. fxe5 {[%clk 0:02:14.9]} 20... Qxe5 {[%clk
0:02:03.7]} 21. f6 {[%clk 0:02:15.7]} 21... gxf6 {[%clk 0:02:01.8]} 22. Re1
{[%clk 0:02:14.9]} 22... Qd6 {[%clk 0:01:57.8]} 23. Qh6 {[%clk 0:02:10.2]} 23...
Ng6 {[%clk 0:01:55.9]} 24. Rf1 {[%clk 0:02:08.1]} 24... Rfe8 {[%clk 0:01:32.4]}
25. Rf5 {[%clk 0:02:06.7]} 25... Qg3 {[%clk 0:01:09.3]} 26. Rf3 {[%clk
0:01:56.6]} 26... Re1+ {[%clk 0:01:07.7]} 27. Rxe1 {[%clk 0:01:55.1]} 27...
Qxe1+ {[%clk 0:01:08.6]} 28. Rf1 {[%clk 0:01:50]} 28... Qg3 {[%clk 0:00:58.5]}
29. Rf3 {[%clk 0:01:42]} 29... Qe1+ {[%clk 0:00:57]} 30. Rf1 {[%clk 0:01:42.4]}
30... Qg3 {[%clk 0:00:57.1]} 31. Rxf6 {[%clk 0:01:19.4]} 31... Re8 {[%clk
0:00:54]} 32. Qd2 {[%clk 0:01:05.8]} 32... Re1+ {[%clk 0:00:35]} 33. Rf1 {[%clk
0:01:05.7]} 33... Rxf1+ {[%clk 0:00:35.6]} 34. Kxf1 {[%clk 0:01:06.6]} 34... Nf4
{[%clk 0:00:36.3]} 35. d4 {[%clk 0:00:54.8]} 35... cxd4 {[%clk 0:00:34]} 36.
cxd4 {[%clk 0:00:55]} 36... Nxh3 {[%clk 0:00:31.8]} 37. Bxd5 {[%clk 0:00:37.7]}
37... Qxg4 {[%clk 0:00:18.6]} 38. Qg2 {[%clk 0:00:32.8]} 38... Qxg2+ {[%clk
0:00:18]} 39. Bxg2 {[%clk 0:00:33.7]} 39... Nf4 {[%clk 0:00:18.4]} 40. Bxb7
{[%clk 0:00:34.4]} 40... Kf8 {[%clk 0:00:17]} 41. Kf2 {[%clk 0:00:30.6]} 41...
Nd3+ {[%clk 0:00:17.4]} 42. Ke3 {[%clk 0:00:31]} 42... Nxb2 {[%clk 0:00:17.6]}
43. Ke4 {[%clk 0:00:26.1]} 43... Ke7 {[%clk 0:00:16.3]} 44. Kd5 {[%clk
0:00:26.3]} 44... Nd3 {[%clk 0:00:11.8]} 45. a3 {[%clk 0:00:18.1]} 45... h5
{[%clk 0:00:11.7]} 46. Kc6 {[%clk 0:00:17]} 46... h4 {[%clk 0:00:09.8]} 47. d5
{[%clk 0:00:16.8]} 47... Ne5+ {[%clk 0:00:09.5]} 48. Kc7 {[%clk 0:00:16.9]}
48... Nc4 {[%clk 0:00:09.2]} 49. Ba6 {[%clk 0:00:12.2]} 49... Nd6 {[%clk
0:00:08.6]} 50. Bf1 {[%clk 0:00:12.5]} 50... f5 {[%clk 0:00:07.7]} 51. Kb8
{[%clk 0:00:12.3]} 51... a5 {[%clk 0:00:07.4]} 52. Ka7 {[%clk 0:00:12.9]} 52...
f4 {[%clk 0:00:02.6]} 53. Kb6 {[%clk 0:00:13.8]} 53... f3 {[%clk 0:00:02.9]} 54.
Kxa5 {[%clk 0:00:14]} 54... Nc4+ {[%clk 0:00:02.1]} 55. Kb4 {[%clk 0:00:14.1]}
55... Ne3 {[%clk 0:00:02.3]} 56. Bh3 {[%clk 0:00:14.1]} 56... f2 {[%clk
0:00:02.7]} 57. a4 {[%clk 0:00:13.1]} 57... f1=Q {[%clk 0:00:03.2]} 58. Bxf1
{[%clk 0:00:13.2]} 58... Nxf1 {[%clk 0:00:04.1]} 59. a5 {[%clk 0:00:14.1]} 59...
Kd6 {[%clk 0:00:03.2]} 60. a6 {[%clk 0:00:14.3]} 60... Ne3 {[%clk 0:00:03.2]}
61. a7 {[%clk 0:00:12.9]} 61... Nxd5+ {[%clk 0:00:03.5]} 62. Kc4 {[%clk
0:00:13.6]} 62... Nb6+ {[%clk 0:00:03.4]} 63. Kd4 {[%clk 0:00:14.2]} 63... h3
{[%clk 0:00:03.6]} 0-1

[Event "Early-Titled-Tuesday-Blitz-March-12-2024"]
[Site "Chess.com"]
[Date "2024.03.12"]
[Round "1"]
[White "GalaxyRoman"]
[Black "VOneChess"]
[Result "1-0"]
[WhiteElo "2708"]
[BlackElo "2334"]
[TimeControl "180+1"]
[EndTime "8:08:33 PDT"]
[Termination "GalaxyRoman won by checkmate"]

1. d4 {[%clk 0:02:57]} 1... Nf6 {[%clk 0:02:59.4]} 2. c4 {[%clk 0:02:53.3]} 2...
e6 {[%clk 0:02:58.6]} 3. Nc3 {[%clk 0:02:52.7]} 3... Bb4 {[%clk 0:02:58.1]} 4.
f3 {[%clk 0:02:51.5]} 4... d5 {[%clk 0:02:57.1]} 5. a3 {[%clk 0:02:49.8]} 5...
Bxc3+ {[%clk 0:02:55]} 6. bxc3 {[%clk 0:02:50.7]} 6... O-O {[%clk 0:02:55.2]} 7.
cxd5 {[%clk 0:02:47.7]} 7... exd5 {[%clk 0:02:54.4]} 8. e3 {[%clk 0:02:48.1]}
8... Re8 {[%clk 0:02:54]} 9. Bd3 {[%clk 0:02:46.5]} 9... Nbd7 {[%clk 0:02:49]}
10. Ne2 {[%clk 0:02:46.3]} 10... c5 {[%clk 0:02:49.9]} 11. O-O {[%clk
0:02:44.6]} 11... Qc7 {[%clk 0:02:49.1]} 12. Ng3 {[%clk 0:02:41.5]} 12... g6
{[%clk 0:02:43.9]} 13. Bd2 {[%clk 0:02:37.3]} 13... b6 {[%clk 0:02:42.8]} 14.
Re1 {[%clk 0:02:37.1]} 14... Bb7 {[%clk 0:02:41.8]} 15. Rc1 {[%clk 0:02:30.2]}
15... Rac8 {[%clk 0:02:41.2]} 16. e4 {[%clk 0:02:27.8]} 16... dxe4 {[%clk
0:02:39.2]} 17. fxe4 {[%clk 0:02:27.6]} 17... cxd4 {[%clk 0:02:27.4]} 18. cxd4
{[%clk 0:02:27.1]} 18... Qd6 {[%clk 0:02:28]} 19. Rxc8 {[%clk 0:02:22.7]} 19...
Rxc8 {[%clk 0:02:24.7]} 20. Be3 {[%clk 0:02:21.7]} 20... Qxa3 {[%clk 0:02:03.5]}
21. Bb1 {[%clk 0:01:17.4]} 21... Re8 {[%clk 0:01:13.9]} 22. e5 {[%clk
0:01:05.2]} 22... Nd5 {[%clk 0:01:12.5]} 23. Bh6 {[%clk 0:01:04.8]} 23... Nc3
{[%clk 0:00:52.3]} 24. Qd2 {[%clk 0:01:01.6]} 24... Nxb1 {[%clk 0:00:43.2]} 25.
Rxb1 {[%clk 0:01:02.5]} 25... f6 {[%clk 0:00:33.2]} 26. Qf2 {[%clk 0:00:51.7]}
26... fxe5 {[%clk 0:00:23.1]} 27. Rf1 {[%clk 0:00:48.6]} 27... Bd5 {[%clk
0:00:22.5]} 28. dxe5 {[%clk 0:00:18.3]} 28... Nxe5 {[%clk 0:00:23.4]} 29. Qf6
{[%clk 0:00:13.8]} 29... Qc5+ {[%clk 0:00:20.1]} 30. Kh1 {[%clk 0:00:12.6]}
30... Bxg2+ {[%clk 0:00:11.1]} 31. Kxg2 {[%clk 0:00:13]} 31... Qc6+ {[%clk
0:00:11.7]} 32. Qxc6 {[%clk 0:00:11.3]} 32... Nxc6 {[%clk 0:00:12.6]} 33. Ne4
{[%clk 0:00:10.6]} 33... Rc8 {[%clk 0:00:04.1]} 34. Ng5 {[%clk 0:00:09.5]} 34...
Ne5 {[%clk 0:00:03.6]} 35. Ne6 {[%clk 0:00:08.1]} 35... Rc2+ {[%clk 0:00:02.3]}
36. Kg1 {[%clk 0:00:08]} 36... Rc8 {[%clk 0:00:02.3]} 37. h3 {[%clk 0:00:07.6]}
37... Nf7 {[%clk 0:00:02.6]} 38. Bf4 {[%clk 0:00:07.3]} 38... a5 {[%clk
0:00:02.4]} 39. Rb1 {[%clk 0:00:07]} 39... Rc6 {[%clk 0:00:02.7]} 40. Ng5 {[%clk
0:00:07]} 40... Rf6 {[%clk 0:00:03]} 41. Be3 {[%clk 0:00:05.1]} 41... Nxg5
{[%clk 0:00:03.1]} 42. Bxg5 {[%clk 0:00:06]} 42... Rf5 {[%clk 0:00:03.8]} 43.
Be3 {[%clk 0:00:06.1]} 43... b5 {[%clk 0:00:04.3]} 44. Bb6 {[%clk 0:00:06.4]}
44... a4 {[%clk 0:00:05.2]} 45. Ba5 {[%clk 0:00:06]} 45... h5 {[%clk 0:00:06.1]}
46. Bb4 {[%clk 0:00:06.2]} 46... Kf7 {[%clk 0:00:07]} 47. Re1 {[%clk 0:00:06.3]}
47... Kf6 {[%clk 0:00:06.8]} 48. Kg2 {[%clk 0:00:06.3]} 48... Kg5 {[%clk
0:00:05.4]} 49. Bd2+ {[%clk 0:00:05.8]} 49... Kf6 {[%clk 0:00:05.6]} 50. Bc3+
{[%clk 0:00:06.3]} 50... Kf7 {[%clk 0:00:06.1]} 51. Bb4 {[%clk 0:00:06.5]} 51...
Rd5 {[%clk 0:00:06.4]} 52. Re7+ {[%clk 0:00:05.3]} 52... Kf6 {[%clk 0:00:06.5]}
53. Rb7 {[%clk 0:00:05.7]} 53... Rd2+ {[%clk 0:00:05.2]} 54. Bxd2 {[%clk
0:00:05.4]} 54... Kf5 {[%clk 0:00:02.8]} 55. Rxb5+ {[%clk 0:00:05.4]} 55... Ke4
{[%clk 0:00:03.7]} 56. Ra5 {[%clk 0:00:05.9]} 56... Kd3 {[%clk 0:00:03.6]} 57.
Rxa4 {[%clk 0:00:06.3]} 57... Kxd2 {[%clk 0:00:03.5]} 58. Ra5 {[%clk 0:00:07]}
58... h4 {[%clk 0:00:02.4]} 59. Rg5 {[%clk 0:00:07.2]} 59... Ke3 {[%clk
0:00:03.3]} 60. Rxg6 {[%clk 0:00:08.1]} 60... Kf4 {[%clk 0:00:03.8]} 61. Rg4+
{[%clk 0:00:09]} 61... Kf5 {[%clk 0:00:04.5]} 62. Rxh4 {[%clk 0:00:09.9]} 62...
Kg5 {[%clk 0:00:05.3]} 63. Rg4+ {[%clk 0:00:10.8]} 63... Kh5 {[%clk 0:00:06.2]}
64. Kg3 {[%clk 0:00:11.7]} 64... Kh6 {[%clk 0:00:07]} 65. Kf4 {[%clk 0:00:11.6]}
65... Kh5 {[%clk 0:00:07.9]} 66. Kf5 {[%clk 0:00:12.5]} 66... Kh6 {[%clk
0:00:08.2]} 67. Kf6 {[%clk 0:00:13.3]} 67... Kh5 {[%clk 0:00:09.1]} 68. Rf4
{[%clk 0:00:13.9]} 68... Kh6 {[%clk 0:00:09.3]} 69. Rh4# {[%clk 0:00:14.8]} 1-0

[Event "Early-Titled-Tuesday-Blitz-March-12-2024"]
[Site "Chess.com"]
[Date "2024.03.12"]
[Round "1"]
[White "MightyMike_009"]
[Black "Aisen1011"]
[Result "1-0"]
[WhiteElo "2862"]
[BlackElo "2480"]
[TimeControl "180+1"]
[EndTime "8:08:46 PDT"]
[Termination "MightyMike_009 won by resignation"]

1. d4 {[%clk 0:03:00.9]} 1... Nf6 {[%clk 0:01:12.1]} 2. c4 {[%clk 0:02:59.9]}
2... g6 {[%clk 0:01:10.1]} 3. Nc3 {[%clk 0:02:59.7]} 3... d5 {[%clk 0:01:10.5]}
4. cxd5 {[%clk 0:02:59.5]} 4... Nxd5 {[%clk 0:01:11.4]} 5. e4 {[%clk 0:02:59.9]}
5... Nxc3 {[%clk 0:01:00.8]} 6. bxc3 {[%clk 0:03:00.8]} 6... Bg7 {[%clk
0:00:59.9]} 7. Nf3 {[%clk 0:03:00.6]} 7... c5 {[%clk 0:00:59.2]} 8. h3 {[%clk
0:03:00.5]} 8... Nc6 {[%clk 0:00:59]} 9. Be3 {[%clk 0:02:54.8]} 9... cxd4 {[%clk
0:00:56.5]} 10. cxd4 {[%clk 0:02:55.7]} 10... Qa5+ {[%clk 0:00:55.2]} 11. Bd2
{[%clk 0:02:56]} 11... Qa3 {[%clk 0:00:54]} 12. d5 {[%clk 0:02:56.4]} 12... Nb4
{[%clk 0:00:48]} 13. Bb5+ {[%clk 0:02:41.5]} 13... Bd7 {[%clk 0:00:44.5]} 14.
Bxd7+ {[%clk 0:02:40.9]} 14... Kxd7 {[%clk 0:00:45.4]} 15. Rb1 {[%clk
0:02:31.4]} 15... Nd3+ {[%clk 0:00:44.3]} 16. Kf1 {[%clk 0:02:29.8]} 16... Rhb8
{[%clk 0:00:42.1]} 17. Rb3 {[%clk 0:01:49.7]} 17... Qa6 {[%clk 0:00:33.8]} 18.
Qe2 {[%clk 0:01:48.5]} 18... Nc5 {[%clk 0:00:29]} 19. Qxa6 {[%clk 0:01:42.4]}
19... bxa6 {[%clk 0:00:29.7]} 20. Ra3 {[%clk 0:01:34.8]} 20... Rb2 {[%clk
0:00:11.8]} 21. Ke2 {[%clk 0:01:13.7]} 21... Nxe4 {[%clk 0:00:11.8]} 22. Rxa6
{[%clk 0:01:12.8]} 22... Nc3+ {[%clk 0:00:11.2]} 23. Kd3 {[%clk 0:01:05.4]}
23... Nxd5 {[%clk 0:00:11.4]} 24. Rd1 {[%clk 0:00:57.9]} 24... Ke8 {[%clk
0:00:10.7]} 25. Ra5 {[%clk 0:00:50.1]} 25... Nb4+ {[%clk 0:00:10.4]} 26. Bxb4
{[%clk 0:00:49.6]} 26... Rxb4 {[%clk 0:00:11.3]} 27. Ke2 {[%clk 0:00:44.1]}
27... Rb2+ {[%clk 0:00:11]} 28. Kf1 {[%clk 0:00:44.6]} 28... Rb7 {[%clk
0:00:10.8]} 29. Rad5 {[%clk 0:00:41.3]} 29... e6 {[%clk 0:00:10]} 30. R5d3
{[%clk 0:00:40.7]} 30... Rab8 {[%clk 0:00:10.4]} 31. Nd2 {[%clk 0:00:39.2]}
31... Rb2 {[%clk 0:00:09.8]} 32. a4 {[%clk 0:00:35.7]} 32... Ra2 {[%clk
0:00:09.7]} 33. Nc4 {[%clk 0:00:34.2]} 33... Bf6 {[%clk 0:00:09.1]} 34. Nd6+
{[%clk 0:00:33.9]} 34... Kf8 {[%clk 0:00:09]} 35. Rf3 {[%clk 0:00:33.5]} 35...
Kg7 {[%clk 0:00:07.9]} 36. g4 {[%clk 0:00:31.6]} 36... Ra1 {[%clk 0:00:07.9]}
37. Rxa1 {[%clk 0:00:30.9]} 37... Bxa1 {[%clk 0:00:08.8]} 38. Rxf7+ {[%clk
0:00:31.6]} 38... Kg8 {[%clk 0:00:09.7]} 39. Rxa7 {[%clk 0:00:31.4]} 39... Rb1+
{[%clk 0:00:10]} 40. Kg2 {[%clk 0:00:31.8]} 40... Bd4 {[%clk 0:00:10.5]} 41.
Ra8+ {[%clk 0:00:28.4]} 41... Kg7 {[%clk 0:00:10.9]} 42. Ne4 {[%clk 0:00:27.3]}
42... Rb2 {[%clk 0:00:10.4]} 43. a5 {[%clk 0:00:27.1]} 43... Ra2 {[%clk
0:00:10.7]} 44. a6 {[%clk 0:00:27.1]} 44... h5 {[%clk 0:00:11.1]} 45. Kg3 {[%clk
0:00:25.7]} 45... hxg4 {[%clk 0:00:10.7]} 46. hxg4 {[%clk 0:00:26.6]} 46... Ra3+
{[%clk 0:00:11.1]} 47. f3 {[%clk 0:00:26.4]} 47... Be5+ {[%clk 0:00:11.1]} 48.
Kg2 {[%clk 0:00:24.1]} 48... Bf4 {[%clk 0:00:12]} 49. Ra7+ {[%clk 0:00:21.1]}
49... Kh6 {[%clk 0:00:11]} 50. Nf6 {[%clk 0:00:18.3]} 50... Ra2+ {[%clk
0:00:10.9]} 51. Kf1 {[%clk 0:00:16.1]} 51... Be3 {[%clk 0:00:11]} 52. Rh7+
{[%clk 0:00:14.3]} 52... Kg5 {[%clk 0:00:11.5]} 53. Ne4+ {[%clk 0:00:14.8]}
53... Kf4 {[%clk 0:00:12.2]} 54. Rf7+ {[%clk 0:00:15.2]} 54... Ke5 {[%clk
0:00:12.4]} 55. g5 {[%clk 0:00:15.4]} 55... Rxa6 {[%clk 0:00:12]} 56. Rf6 {[%clk
0:00:15.8]} 56... Kd4 {[%clk 0:00:12.6]} 57. Rxg6 {[%clk 0:00:16.2]} 57... Ra1+
{[%clk 0:00:12.9]} 58. Kg2 {[%clk 0:00:16.2]} 58... Ra2+ {[%clk 0:00:13.8]} 59.
Kg3 {[%clk 0:00:16.2]} 59... e5 {[%clk 0:00:14.2]} 60. Rd6+ {[%clk 0:00:16.4]}
60... Kc4 {[%clk 0:00:14.5]} 61. g6 {[%clk 0:00:16.9]} 61... Bf4+ {[%clk
0:00:14.8]} 62. Kg4 {[%clk 0:00:17.2]} 62... Rg2+ {[%clk 0:00:14.9]} 63. Kf5
{[%clk 0:00:17.8]} 63... Rg1 {[%clk 0:00:14]} 64. Rd7 {[%clk 0:00:17.8]} 64...
Rf1 {[%clk 0:00:13.3]} 65. g7 {[%clk 0:00:17.1]} 65... Rg1 {[%clk 0:00:12.7]}
66. Nf6 {[%clk 0:00:17]} 66... Bh6 {[%clk 0:00:11]} 67. g8=Q+ {[%clk 0:00:16.8]}
67... Rxg8 {[%clk 0:00:07.4]} 68. Nxg8 {[%clk 0:00:17.7]} 68... Bf4 {[%clk
0:00:08]} 69. Ke4 {[%clk 0:00:18.6]} 69... Kc5 {[%clk 0:00:08]} 70. Nf6 {[%clk
0:00:19.4]} 70... Kc6 {[%clk 0:00:08.9]} 71. Rd3 {[%clk 0:00:20]} 71... Kc7
{[%clk 0:00:09.8]} 72. Ng4 {[%clk 0:00:20.9]} 72... Kc6 {[%clk 0:00:10.7]} 73.
Nxe5+ {[%clk 0:00:21.8]} 73... Kc5 {[%clk 0:00:11.6]} 74. Kxf4 {[%clk 0:00:22]}
1-0